bitfinex-derivatives/quotes_ETHF0:USTF0_20251216
["timestamp","ask_amount","ask_price","bid_price","bid_amount"]
[1765875609137,1.68697,2930.2,2930.1,3.982]
[1765875609541,0.93667,2930.2,2930.1,6.29293359]
[1765875611742,0.93667,2930.2,2930.1,3.08513359]
[1765875612946,1.68698,2930.1,2930.0,0.427]
[1765875613140,1.68698,2930.1,2929.5,0.4584]
[1765875613141,1.687,2929.6,2929.5,4.4404]
[1765875613448,3.22403359,2929.6,2929.5,4.4404]
[1765875613639,3.22403359,2929.6,2929.5,1.2326]
[1765875613838,0.1707,2929.6,2929.5,2.0065]
[1765875614445,0.9367,2929.6,2929.5,2.0065]
[1765875615043,0.1707,2929.6,2929.5,2.0065]
[1765875618743,3.2078,2930.1,2930.0,2.0223]
[1765875619143,4.89474,2930.8,2930.7,0.7742]
[1765875619346,4.89474,2930.8,2930.7,1.5481]
[1765875619540,1.68695,2930.6,2930.5,0.4742]
[1765875619946,1.68695,2930.6,2930.5,1.2484]
[1765875620146,0.17065,2930.6,2930.5,2.0223]
[1765875620340,0.93665,2930.6,2930.5,2.0223]
[1765875620544,1.68695,2930.6,2930.5,2.0223]
[1765875620953,1.68695,2930.6,2930.5,1.2484]
[1765875621250,1.68695,2930.6,2930.5,2.0223]
[1765875622152,1.68695,2930.6,2930.5,1.2484]
[1765875623654,1.68695,2930.6,2930.5,2.0223]
[1765875624551,1.68695,2930.6,2930.5,1.2484]
[1765875625954,1.68695,2930.6,2930.5,2.0223]
[1765875627148,0.93665,2930.6,2930.5,2.0223]
[1765875627752,0.17065,2930.6,2930.5,3.55933359]
[1765875628254,0.00511814,2930.8,2930.7,1.5481]
[1765875628555,0.00511814,2930.8,2930.7,3.08513359]
[1765875629953,0.77111814,2930.8,2930.7,1.5481]
[1765875630158,1.52141814,2930.8,2930.7,1.5481]
[1765875630358,0.77111814,2930.8,2930.7,1.5481]
[1765875631057,0.94174814,2930.8,2930.7,1.5481]
[1765875633363,1.5089,2930.6,2930.5,1.9039]
[1765875633556,1.67955,2930.6,2930.5,1.1857]
[1765875633760,0.7459,2930.3,2930.2,4.6375]
[1765875634652,1.67956,2930.3,2930.2,1.4297]
[1765875635257,1.5089,2930.1,2930.0,0.4742]
[1765875635457,1.5089,2929.8,2929.7,0.7115]
[1765875635656,1.5089,2929.6,2929.5,1.8881]
[1765875637165,0.7459,2929.6,2929.5,1.8881]
[1765875637859,0.1707,2929.7,2929.6,1.4297]
[1765875638065,3.2078,2930.1,2930.0,1.8545]
[1765875638367,3.9537,2930.1,2930.0,1.8545]
[1765875638561,4.88738,2930.1,2930.0,1.8545]
[1765875638767,4.88738,2930.1,2930.0,0.4248]
[1765875639066,4.88738,2930.1,2930.0,1.1363]
[1765875639368,4.88738,2930.1,2930.0,1.8545]
[1765875641270,0.17068,2930.0,2929.5,0.4584]
[1765875641774,1.67958,2930.0,2929.9,1.4297]
[1765875642267,1.5089,2929.6,2929.5,1.8881]
[1765875642459,0.7459,2929.6,2929.5,1.8881]
[1765875647367,1.5089,2929.6,2929.5,1.8881]
[1765875648475,0.7459,2929.6,2929.5,1.8881]
[1765875649769,0.9166,2929.7,2929.6,1.4297]
[1765875649966,1.6796,2929.6,2929.5,0.4584]
[1765875650277,1.6796,2929.6,2929.5,1.1699]
[1765875650577,1.6796,2929.6,2929.5,1.8881]
[1765875654170,1.6796,2929.6,2929.5,1.1699]
[1765875654373,1.6796,2929.6,2929.5,0.4584]
[1765875654574,1.6796,2929.6,2929.5,1.1699]
[1765875655575,1.6796,2929.6,2929.5,1.8881]
[1765875656877,1.6796,2929.6,2929.5,1.1699]
[1765875657081,1.6796,2929.6,2929.5,1.8881]
[1765875657280,1.6796,2929.6,2929.5,0.4584]
[1765875657479,1.67961,2929.5,2929.4,0.00349402]
[1765875657679,4.88741,2929.5,2929.4,0.00349402]
[1765875658476,4.88741,2929.5,2929.4,1.43319402]
[1765875659277,4.88741,2929.5,2929.4,0.71499402]
[1765875660376,4.88741,2929.5,2929.4,1.43319402]
[1765875660572,4.88741,2929.5,2929.4,0.71499402]
[1765875661079,3.2078,2929.8,2929.7,1.4297]
[1765875661473,3.9537,2929.8,2929.7,1.4297]
[1765875661782,4.7167,2929.8,2929.7,1.4297]
[1765875662181,1.5089,2929.5,2929.4,0.00349402]
[1765875662385,1.02674977,2929.7,2929.6,1.5416]
[1765875662685,1.02674977,2929.8,2929.7,1.5416]
[1765875662874,2.50834977,2929.8,2929.7,1.5416]
[1765875663072,1.4816,2929.5,2929.4,0.00349402]
[1765875663376,1.4816,2929.4,2928.8,3.2078]
[1765875663582,4.86013,2929.1,2928.5,0.4248]
[1765875663786,2.50834977,2929.0,2928.9,0.7658]
[1765875663976,2.50834977,2929.0,2928.9,1.5416]
[1765875664173,0.7681,2929.0,2928.9,1.5416]
[1765875664377,0.93883,2929.1,2929.0,1.9741]
[1765875664682,1.97124792,2929.1,2929.0,1.9741]
[1765875667984,1.20314792,2929.1,2929.0,1.9741]
[1765875668191,1.97124792,2929.1,2929.0,1.9741]
[1765875669588,2.68474792,2929.1,2929.0,1.1983]
[1765875669987,2.68474792,2929.1,2929.0,1.9741]
[1765875671389,2.68474792,2929.1,2929.0,0.4325]
[1765875671989,2.68474792,2929.1,2929.0,1.1983]
[1765875673185,2.68474792,2929.1,2929.0,1.9741]
[1765875673789,2.68474792,2929.1,2929.0,1.1983]
[1765875673983,2.68474792,2929.1,2929.0,0.4325]
[1765875674289,2.68474792,2929.1,2929.0,1.9741]
[1765875674491,1.97124792,2929.1,2929.0,1.9741]
[1765875674884,2.68474792,2929.1,2929.0,1.9741]
[1765875676690,0.94263703,2929.1,2929.0,1.9741]
[1765875676887,1.65613703,2929.1,2929.0,1.9741]
[1765875677491,1.65613703,2929.1,2929.0,0.4325]
[1765875677686,1.4816,2929.0,2928.9,0.76869524]
[1765875677991,1.4816,2929.0,2928.9,1.54449524]
[1765875678382,0.7681,2929.0,2928.9,1.54449524]
[1765875678582,1.4816,2929.0,2928.9,1.54449524]
[1765875678787,0.7681,2929.0,2928.9,1.54449524]
[1765875679293,1.4816,2929.0,2928.9,1.54449524]
[1765875679491,2.51021089,2929.0,2928.9,1.54449524]
[1765875681093,1.79671089,2929.0,2928.9,1.54449524]
[1765875682691,2.51021089,2929.0,2928.9,1.54449524]
[1765875686591,1.79671089,2929.0,2928.9,1.54449524]
[1765875688992,1.02861089,2929.0,2928.9,3.08339962]
[1765875689198,0.00380703,2929.1,2929.0,1.9741]
[1765875689495,1.03319933,2929.1,2929.0,1.9741]
[1765875689903,2.51479933,2929.1,2929.0,1.9741]
[1765875690196,1.80129933,2929.1,2929.0,1.9741]
[1765875690590,2.51479933,2929.1,2929.0,1.9741]
[1765875693095,1.80129933,2929.1,2929.0,1.9741]
[1765875693295,2.52449933,2929.1,2929.0,1.9741]
[1765875693591,1.03319933,2929.1,2929.0,5.1819]
[1765875693995,0.00380703,2929.1,2929.0,5.1819]
[1765875694906,1.03411799,2929.5,2929.4,1.4464]
[1765875695596,1.74641799,2929.5,2929.4,1.4464]
[1765875695799,2.48771799,2929.5,2929.4,1.4464]
[1765875695995,2.49171824,2929.5,2929.4,1.4464]
[1765875698705,0.7537,2929.1,2929.0,1.9148]
[1765875699308,1.495,2929.3,2929.2,1.4823]
[1765875699603,1.495,2929.1,2929.0,1.9148]
[1765875699799,0.7537,2929.1,2929.0,1.9148]
[1765875700204,2.52911799,2929.4,2929.3,1.4823]
[1765875700407,1.03411799,2929.4,2929.3,1.4823]
[1765875700707,0.00400025,2929.5,2929.4,1.4823]
[1765875700910,1.03699743,2929.5,2929.4,1.4823]
[1765875701509,2.53199743,2929.5,2929.4,1.4823]
[1765875701703,1.495,2929.1,2929.0,1.9148]
[1765875702005,2.52799718,2929.4,2929.3,1.4823]
[1765875702512,1.78669718,2929.4,2929.3,1.4823]
[1765875704911,1.03299718,2929.4,2929.3,1.4823]
[1765875705713,1.79069743,2929.5,2929.4,1.4823]
[1765875705914,1.03699743,2929.5,2929.4,1.4823]
[1765875706819,0.00400025,2929.5,2929.4,1.4823]
[1765875707919,0.75770025,2929.5,2929.4,1.4823]
[1765875708421,0.00400025,2929.5,2929.4,1.4823]
[1765875709419,0.75770025,2929.5,2929.4,1.4823]
[1765875709626,1.495,2929.3,2929.2,4.6901]
[1765875710023,0.7537,2929.3,2929.2,4.6901]
[1765875712428,1.495,2929.3,2929.2,4.6901]
[1765875712625,0.00400025,2929.5,2929.4,1.4823]
[1765875713221,1.03699743,2929.5,2929.4,1.4823]
[1765875713417,0.00400025,2929.5,2929.4,1.4823]
[1765875713623,1.03699743,2929.5,2929.4,1.4823]
[1765875713924,0.00400025,2929.5,2929.4,1.4823]
[1765875714124,1.79069743,2929.5,2929.4,1.4823]
[1765875714326,0.75770025,2929.5,2929.4,1.4823]
[1765875714524,1.79069743,2929.5,2929.4,1.4823]
[1765875714725,0.75770025,2929.5,2929.4,1.4823]
[1765875714927,1.79069743,2929.5,2929.4,1.4823]
[1765875715127,0.00400025,2929.5,2929.4,1.4823]
[1765875715429,1.03699743,2929.5,2929.4,1.4823]
[1765875715623,0.00400025,2929.5,2929.4,1.4823]
[1765875715823,1.03699743,2929.5,2929.4,1.4823]
[1765875716023,0.00400025,2929.5,2929.4,1.4823]
[1765875716230,1.79069743,2929.5,2929.4,1.4823]
[1765875716429,0.75770025,2929.5,2929.4,1.4823]
[1765875716630,1.79069743,2929.5,2929.4,1.4823]
[1765875716831,0.00400025,2929.5,2929.4,1.4823]
[1765875717321,0.00400025,2929.5,2929.4,3.02056028]
[1765875717525,0.75770025,2929.5,2929.4,1.4823]
[1765875717725,0.00400025,2929.5,2929.4,1.4823]
[1765875719236,1.03699743,2929.5,2929.4,1.4823]
[1765875719423,0.00400025,2929.5,2929.4,1.4823]
[1765875719628,1.03699743,2929.5,2929.4,1.4823]
[1765875719829,0.00400025,2929.5,2929.4,1.4823]
[1765875720133,1.79069743,2929.5,2929.4,1.4823]
[1765875720333,0.75770025,2929.5,2929.4,1.4823]
[1765875720522,2.53199743,2929.5,2929.4,1.4823]
[1765875720930,1.49900025,2929.5,2929.4,1.4823]
[1765875721131,2.53199743,2929.5,2929.4,1.4823]
[1765875722331,0.7844,2929.1,2929.0,1.9345]
[1765875722629,0.7844,2929.1,2928.9,3.21069524]
[1765875722630,1.5205,2929.0,2928.9,0.00289524]
[1765875722834,2.55349718,2929.0,2928.9,1.50489524]
[1765875723331,1.81739718,2929.0,2928.9,1.50489524]
[1765875723836,1.03299718,2929.1,2929.0,1.9274]
[1765875724034,1.03299718,2929.4,2929.3,1.4779]
[1765875724236,1.03299718,2929.4,2929.3,3.01616028]
[1765875724541,1.79309718,2929.4,2929.3,3.01616028]
[1765875724738,1.7909881,2929.4,2929.3,3.01616028]
[1765875725236,1.0308881,2929.4,2929.3,3.01616028]
[1765875728235,2.5192881,2929.4,2929.3,1.4779]
[1765875728436,2.5192881,2929.4,2929.3,0.7389]
[1765875728747,1.0308881,2929.4,2929.2,4.6857]
[1765875728946,0.7601,2929.4,2929.3,1.4779]
[1765875729142,1.79097611,2929.4,2929.3,1.4779]
[1765875729439,1.79097611,2929.4,2929.3,3.01616028]
[1765875731343,1.03087611,2929.4,2929.3,3.01616028]
[1765875731640,1.79097611,2929.4,2929.3,3.01616028]
[1765875731842,2.51927611,2929.4,2929.3,0.7389]
[1765875732043,2.51927611,2929.4,2929.1,1.53826028]
[1765875732239,1.4884,2929.2,2929.1,3.01616028]
[1765875732436,1.4884,2929.0,2928.9,3.21069524]
[1765875732636,1.4884,2929.0,2928.9,3.94959524]
[1765875732835,2.51927611,2929.0,2928.9,3.94959524]
[1765875733035,1.4884,2929.0,2928.9,3.94959524]
[1765875733438,2.51927611,2929.0,2928.9,4.68859524]
[1765875733638,1.4884,2929.0,2928.9,4.68859524]
[1765875734044,2.51927611,2929.0,2928.9,1.48079524]
[1765875735142,1.4884,2929.0,2928.9,1.48079524]
[1765875735541,2.51927611,2929.0,2928.9,1.48079524]
[1765875735737,1.4884,2929.0,2928.9,1.48079524]
[1765875736137,2.51927611,2929.0,2928.9,1.48079524]
[1765875736339,1.4884,2929.0,2928.9,1.48079524]
[1765875736739,2.51927611,2929.0,2928.9,1.48079524]
[1765875736940,0.7601,2929.0,2928.9,3.01905552]
[1765875737243,1.03087611,2929.0,2928.9,3.01905552]
[1765875737447,1.79097611,2929.2,2929.1,1.4779]
[1765875737645,2.51927611,2929.2,2929.1,1.4779]
[1765875741649,2.51927611,2929.2,2929.1,0.7389]
[1765875741850,2.51927611,2929.2,2929.1,1.4779]
[1765875745446,1.79097611,2929.2,2929.1,1.4779]
[1765875745651,1.03087611,2929.2,2929.1,3.01616028]
[1765875746745,2.51927611,2929.2,2929.1,1.4779]
[1765875746952,1.03087611,2929.2,2929.1,1.4779]
[1765875747248,1.79097611,2929.4,2929.3,1.4779]
[1765875747444,1.03087611,2929.4,2929.0,1.9274]
[1765875747650,1.4884,2929.4,2929.3,1.4779]
[1765875747851,2.51860021,2929.4,2929.3,1.4779]
[1765875748147,1.79030021,2929.4,2929.3,1.4779]
[1765875748344,1.03020021,2929.4,2929.3,1.4779]
[1765875751249,1.03020021,2929.4,2929.3,4.6857]
[1765875751553,1.03020021,2929.4,2929.3,1.4779]
[1765875755055,0.00400025,2929.5,2929.4,1.5202]
[1765875755258,0.00400025,2929.5,2929.4,3.05846028]
[1765875758458,1.5079,2929.1,2929.0,3.6573]
[1765875758655,1.5079,2929.1,2929.0,1.2255]
[1765875759260,2.53810021,2929.1,2929.0,1.2255]
[1765875759455,1.5079,2929.1,2929.0,1.2255]
[1765875759656,1.03020021,2929.1,2929.0,2.0068]
[1765875759856,0.7613,2929.2,2929.1,1.5605]
[1765875760162,0.7613,2929.2,2929.1,3.09876028]
[1765875763763,1.03020021,2929.3,2929.1,1.53826028]
[1765875763964,1.03020021,2929.4,2929.3,1.5605]
[1765875764267,0.00400025,2929.5,2929.4,3.09876028]
[1765875764467,1.79382428,2929.5,2929.4,3.09876028]
[1765875765165,1.79382428,2929.5,2929.4,1.5605]
[1765875765565,2.54042428,2929.5,2929.4,0.7792]
[1765875765866,2.54042428,2929.5,2929.4,1.5605]
[1765875769362,5.74822428,2929.5,2929.4,0.7792]
[1765875769568,0.7613,2929.2,2929.1,3.09876028]
[1765875769768,4.71970025,2929.5,2929.4,1.5605]
[1765875769974,5.74848952,2929.5,2929.4,1.5605]
[1765875771873,5.74848952,2929.5,2929.4,0.7792]
[1765875772074,5.74848952,2929.5,2929.4,1.5605]
[1765875772474,2.54068952,2929.5,2929.4,1.5605]
[1765875775186,1.79408952,2929.5,2929.4,3.09876028]
[1765875775679,2.54068952,2929.5,2929.4,3.09876028]
[1765875777083,1.79408952,2929.5,2929.4,3.09876028]
[1765875777281,2.54068952,2929.5,2929.4,3.09876028]
[1765875777485,2.54068952,2929.5,2929.4,1.5605]
[1765875778283,1.79408952,2929.5,2929.4,1.5605]
[1765875778474,1.79408952,2929.5,2929.4,3.09884416]
[1765875778680,1.03278952,2929.5,2929.4,6.30664416]
[1765875778875,1.79408952,2929.5,2929.4,1.5605]
[1765875779082,2.54068952,2929.5,2929.4,1.5605]
[1765875779288,1.5079,2929.4,2929.3,3.987]
[1765875779483,2.53668927,2929.4,2929.3,4.7683]
[1765875780986,1.79008927,2929.4,2929.3,4.7683]
[1765875781590,1.02878927,2929.4,2929.3,4.7683]
[1765875783689,1.79008927,2929.4,2929.3,4.7683]
[1765875784291,1.02878927,2929.4,2929.3,4.7683]
[1765875789997,1.75878927,2929.4,2929.3,4.7683]
[1765875790989,2.49858927,2929.4,2929.3,4.7683]
[1765875791186,2.49858927,2929.4,2929.3,3.2078]
[1765875791386,2.49858927,2929.4,2929.3,1.4623]
[1765875793096,2.5014119,2929.4,2929.3,1.4623]
[1765875794794,1.4698,2929.4,2929.3,1.4623]
[1765875794998,2.50149601,2929.4,2929.3,1.4623]
[1765875795701,1.76169601,2929.4,2929.3,1.4623]
[1765875796797,1.03169601,2929.4,2929.3,1.4623]
[1765875797499,1.76169601,2929.4,2929.3,1.4623]
[1765875797798,2.50149601,2929.4,2929.3,1.4623]
[1765875798498,1.76169601,2929.4,2929.3,1.4623]
[1765875799296,0.00400025,2929.5,2929.4,1.4623]
[1765875799498,0.39902148,2930.2,2930.1,1.4623]
[1765875799700,1.4698,2930.2,2930.1,1.4623]
[1765875799900,1.4698,2930.1,2930.0,0.7512]
[1765875800497,1.47235588,2930.1,2930.0,1.4623]
[1765875801398,1.4698,2929.8,2929.7,3.959]
[1765875801997,1.4698,2929.8,2929.7,4.6701]
[1765875802197,1.4698,2929.8,2929.7,3.2078]
[1765875803104,1.4698,2929.8,2929.7,3.959]
[1765875803305,1.4698,2929.8,2929.7,4.6701]
[1765875804100,0.73,2929.8,2929.7,4.6701]
[1765875804293,1.47235588,2930.1,2930.0,1.4623]
[1765875805907,0.73255588,2930.1,2930.0,1.8878]
[1765875806404,0.00255588,2930.1,2930.0,1.8878]
[1765875807600,0.00255588,2930.1,2930.0,3.42614167]
[1765875808404,0.00255588,2930.1,2930.0,1.8878]
[1765875808806,0.00255588,2930.1,2930.0,3.42614167]
[1765875809205,0.73255588,2930.1,2930.0,3.42614167]
[1765875809403,1.47235588,2930.1,2930.0,1.4623]
[1765875810102,1.47235588,2930.1,2930.0,1.8878]
[1765875810807,0.73255588,2930.1,2930.0,1.8878]
[1765875817719,0.73255588,2930.1,2930.0,3.42614167]
[1765875818316,0.00255588,2930.1,2930.0,3.42614167]
[1765875818518,0.74875588,2930.1,2930.0,3.42614167]
[1765875818823,0.00255588,2930.1,2930.0,3.42614167]
[1765875820215,0.74875588,2930.1,2930.0,3.42614167]
[1765875820922,0.00255588,2930.1,2930.0,3.42614167]
[1765875823621,0.74875588,2930.1,2930.0,3.42614167]
[1765875824218,1.47195588,2930.1,2930.0,1.4623]
[1765875825018,0.74875588,2930.1,2930.0,1.895]
[1765875825222,0.00255588,2930.1,2930.0,1.895]
[1765875827226,1.77363026,2930.1,2930.0,3.43334167]
[1765875827425,0.74875588,2930.1,2930.0,3.43334167]
[1765875827633,1.77363026,2930.1,2930.0,3.43334167]
[1765875827919,0.74875588,2930.1,2930.0,3.43334167]
[1765875828124,2.49683026,2930.1,2930.0,3.43334167]
[1765875828518,1.77363026,2930.1,2930.0,3.43334167]
[1765875828926,1.02743026,2930.1,2930.0,3.43334167]
[1765875829120,0.00255588,2930.1,2930.0,3.43334167]
[1765875829332,1.02743026,2930.1,2930.0,3.43334167]
[1765875830628,0.00255588,2930.1,2930.0,6.64114167]
[1765875839541,0.00255588,2930.1,2930.0,6.63992183]
[1765875841138,0.00511814,2930.3,2930.2,1.4952]
[1765875841338,0.00511814,2930.3,2930.2,3.03232183]
[1765875841735,1.02022916,2930.8,2930.7,1.4952]
[1765875841940,1.76642916,2931.0,2930.9,1.4952]
[1765875842136,2.49234093,2931.0,2930.9,3.03232183]
[1765875842338,1.473,2930.7,2930.5,3.6405]
[1765875842538,1.473,2930.6,2930.5,4.74492183]
[1765875842740,1.473,2930.6,2930.5,5.50922183]
[1765875842939,1.473,2930.6,2930.5,4.74492183]
[1765875843140,2.49322916,2930.6,2930.5,6.27932183]
[1765875843341,1.473,2930.6,2930.5,6.27932183]
[1765875844942,1.473,2930.6,2930.5,6.71132183]
[1765875845236,0.7257,2930.7,2930.6,1.5344]
[1765875845441,0.7257,2930.7,2930.6,3.07152183]
[1765875845641,1.473,2930.7,2930.6,3.07152183]
[1765875845842,0.7257,2930.7,2930.6,3.07152183]
[1765875846631,1.02364128,2930.8,2930.6,3.07152183]
[1765875846837,0.00341212,2930.8,2930.7,1.5344]
[1765875847036,1.74934128,2930.8,2930.7,1.5344]
[1765875847334,0.72911212,2930.8,2930.7,1.5344]
[1765875848343,0.00341212,2930.8,2930.7,1.5344]
[1765875848748,0.00341212,2930.8,2930.7,3.07124749]
[1765875856052,0.00341212,2930.8,2930.3,40.80511814]
[1765875856053,1.473,2930.4,2930.3,0.00511814]
[1765875856448,2.66388916,2930.4,2930.3,0.00511814]
[1765875857058,2.66388916,2930.4,2930.3,0.76941814]
[1765875857260,2.66388916,2930.4,2930.3,0.00511814]
[1765875858357,2.66388916,2930.4,2930.3,0.76941814]
[1765875859658,1.02022916,2930.4,2930.3,3.07636563]
[1765875859848,2.49322916,2930.7,2930.6,1.5344]
[1765875860053,0.7257,2930.7,2930.6,3.07124749]
[1765875860355,0.72911212,2930.8,2930.7,1.5344]
[1765875861552,1.47641212,2930.8,2930.7,0.7643]
[1765875861860,1.47641212,2930.8,2930.7,1.5344]
[1765875863561,1.47641212,2930.8,2930.7,0.7643]
[1765875863964,1.47641212,2930.8,2930.7,1.5344]
[1765875864563,1.47641212,2930.8,2930.7,0.7643]
[1765875864765,1.473,2930.6,2930.5,1.9664]
[1765875865964,0.7257,2930.6,2930.5,1.9664]
[1765875867863,1.473,2930.6,2930.5,0.7643]
[1765875871265,1.473,2930.6,2930.5,1.5344]
[1765875871459,2.49664128,2930.8,2930.7,1.5344]
[1765875871665,2.49664128,2930.8,2930.7,3.07124749]
[1765875872057,2.49664128,2930.8,2930.7,1.5344]
[1765875876765,1.74934128,2930.8,2930.7,1.5344]
[1765875876967,2.52204128,2930.8,2930.7,0.7643]
[1765875877169,1.5,2930.6,2930.5,0.7436]
[1765875877382,1.5,2930.4,2930.3,1.48161814]
[1765875878571,0.7273,2930.4,2930.3,1.48161814]
[1765875878772,1.5,2930.4,2930.3,1.48161814]
[1765875879668,3.2078,2930.5,2930.3,1.48161814]
[1765875879669,0.7273,2930.5,2930.4,1.4765]
[1765875879870,1.5,2930.5,2930.4,3.01334749]
[1765875881871,1.19087916,2930.6,2930.4,3.01334749]
[1765875882065,0.17065,2930.6,2930.5,1.9233]
[1765875882267,1.19087916,2930.6,2930.5,1.9233]
[1765875882468,0.17065,2930.6,2930.5,1.9233]
[1765875882667,1.5,2930.4,2930.3,3.01846563]
[1765875882864,0.7273,2930.4,2930.3,3.01846563]
[1765875883270,1.19087916,2930.6,2930.5,1.9233]
[1765875883271,1.67065,2930.6,2930.5,1.9233]
[1765875883573,1.67065,2930.6,2930.5,3.46014749]
[1765875883574,2.69087916,2930.6,2930.5,3.46014749]
[1765875883771,1.67065,2930.6,2930.5,3.46014749]
[1765875883972,2.69087916,2930.6,2930.5,3.46014749]
[1765875884272,1.67065,2930.6,2930.5,3.46014749]
[1765875884473,2.69087916,2930.6,2930.5,3.46014749]
[1765875884669,0.89795,2930.6,2930.5,3.46014749]
[1765875884870,1.91817916,2930.6,2930.5,3.46014749]
[1765875885170,0.89795,2930.6,2930.5,3.46014749]
[1765875885474,1.91817916,2930.6,2930.5,3.46014749]
[1765875885673,0.89795,2930.6,2930.5,3.46014749]
[1765875885973,1.91817916,2930.6,2930.5,3.46014749]
[1765875886173,0.89795,2930.6,2930.5,3.46014749]
[1765875886374,1.91817916,2930.6,2930.5,3.46014749]
[1765875886669,0.89795,2930.6,2930.5,3.46014749]
[1765875886877,1.91817916,2930.6,2930.5,3.46014749]
[1765875887077,0.89795,2930.6,2930.5,3.46014749]
[1765875887272,1.91817916,2930.6,2930.5,3.46014749]
[1765875888166,2.69087916,2930.6,2930.5,3.46014749]
[1765875893679,2.69087916,2930.6,2930.5,1.9233]
[1765875893880,2.69087916,2930.6,2930.5,1.4765]
[1765875894075,2.69087916,2930.6,2930.5,0.7436]
[1765875894386,2.69087916,2930.6,2930.5,1.4765]
[1765875894577,1.5,2930.4,2930.3,0.00511814]
[1765875894772,2.52022916,2930.4,2930.3,0.00511814]
[1765875894969,2.52022916,2930.4,2930.3,0.74871814]
[1765875895373,2.52022916,2930.4,2930.3,1.48161814]
[1765875895573,2.52022916,2930.4,2930.3,0.74871814]
[1765875895977,2.52022916,2930.4,2930.3,1.48161814]
[1765875896576,2.52022916,2930.4,2930.3,3.01846563]
[1765875897589,1.74364321,2930.4,2930.3,3.01846563]
[1765875898282,1.01634321,2930.4,2930.3,3.01846563]
[1765875898583,0.00341212,2930.8,2930.7,1.4765]
[1765875898983,0.73071212,2930.8,2930.7,1.4765]
[1765875899282,1.50341212,2930.8,2930.7,1.4765]
[1765875899681,1.5,2930.4,2930.3,0.00511814]
[1765875899982,1.67066,2930.4,2930.3,1.48161814]
[1765875900184,3.2078,2930.5,2930.4,1.4765]
[1765875900381,3.9351,2930.7,2930.6,1.4765]
[1765875900581,4.7078,2930.7,2930.6,1.4765]
[1765875900886,1.5,2930.4,2930.3,3.01866704]
[1765875901182,1.5,2930.4,2930.3,0.00511814]
[1765875901381,1.67066,2930.4,2930.3,0.00511814]
[1765875901579,0.17067,2930.3,2929.6,3.2078]
[1765875901884,4.7078,2930.1,2930.0,1.4765]
[1765875902585,1.4987,2929.9,2929.8,0.00511814]
[1765875902982,3.2078,2930.1,2929.8,1.54551814]
[1765875903288,4.87718,2930.1,2930.0,0.771]
[1765875903485,1.4987,2929.9,2929.8,1.54551814]
[1765875905593,3.37848,2930.1,2930.0,1.9828]
[1765875905796,0.7826,2930.4,2930.3,1.5404]
[1765875906187,4.7065,2930.4,2930.3,1.5404]
[1765875908394,1.4987,2930.1,2930.0,1.9828]
[1765875908896,0.7826,2930.1,2930.0,3.5198489]
[1765875910091,0.7826,2930.1,2930.0,1.9828]
[1765875911299,1.4987,2930.1,2930.0,1.5404]
[1765875911597,1.4987,2929.9,2929.8,0.00511814]
[1765875911997,2.51021157,2929.9,2929.8,0.00511814]
[1765875912492,2.68090157,2929.9,2929.8,1.54551814]
[1765875913095,2.68090157,2929.9,2929.8,0.77611814]
[1765875913298,1.66939,2929.9,2929.8,0.00511814]
[1765875913793,2.68090157,2929.9,2929.8,0.00511814]
[1765875913999,1.4987,2929.1,2929.0,1.5404]
[1765875914198,0.7826,2929.1,2929.0,1.9828]
[1765875914591,1.4987,2929.1,2929.0,1.9828]
[1765875914793,1.936,2929.0,2928.9,0.00289524]
[1765875915000,0.95334,2929.1,2929.0,1.9828]
[1765875915296,1.66944,2929.1,2929.0,1.9828]
[1765875915695,1.8614,2929.0,2928.9,0.00289524]
[1765875915895,1.8614,2929.0,2928.9,0.77389524]
[1765875916098,1.8614,2929.0,2928.9,1.54329524]
[1765875916700,1.4987,2929.0,2928.9,1.54329524]
[1765875917401,0.7826,2929.0,2928.9,1.54329524]
[1765875917606,0.95334,2929.1,2929.0,1.9828]
[1765875919701,0.00511814,2929.2,2929.1,1.5404]
[1765875920196,0.78771814,2929.2,2929.1,1.5404]
[1765875920401,1.50381814,2929.2,2929.1,1.5404]
[1765875923203,0.78771814,2929.2,2929.1,1.5404]
[1765875923601,0.00511814,2929.2,2929.1,1.5404]
[1765875923798,1.50381814,2929.2,2929.1,1.5404]
[1765875925307,0.78771814,2929.2,2929.1,1.5404]
[1765875926497,0.00511814,2929.2,2929.1,1.5404]
[1765875926702,0.00511814,2929.2,2929.1,3.07937832]
[1765875928100,0.95328,2930.1,2930.0,1.9828]
[1765875928604,1.66938,2930.1,2930.0,1.9828]
[1765875929416,0.7826,2929.7,2929.6,1.5404]
[1765875930013,3.37848,2930.1,2929.6,1.5404]
[1765875930514,4.87718,2930.1,2930.0,1.9828]
[1765875934025,4.87718,2930.1,2930.0,0.771]
[1765875934210,4.87718,2930.1,2930.0,1.4934]
[1765875934616,4.87718,2930.1,2930.0,0.771]
[1765875935018,4.87718,2930.1,2930.0,1.4934]
[1765875935517,4.87718,2930.1,2929.7,1.53897832]
[1765875935518,1.4862,2929.8,2929.7,1.495]
[1765875935719,1.4862,2929.4,2929.3,4.7028]
[1765875935924,1.4862,2929.4,2929.3,6.24177832]
[1765875936124,0.7357,2929.4,2929.3,6.24177832]
[1765875937328,1.4862,2930.1,2930.0,1.9306]
[1765875939029,1.4862,2930.1,2930.0,1.495]
[1765875942529,0.00511814,2930.3,2930.0,0.4356]
[1765875942831,1.49131814,2930.3,2930.2,1.495]
[1765875943040,1.4862,2930.1,2930.0,1.495]
[1765875946733,1.4862,2930.1,2930.0,1.9306]
[1765875946933,0.7357,2930.1,2930.0,1.9306]
[1765875947330,1.4862,2930.1,2930.0,1.9306]
[1765875948831,0.7357,2930.1,2930.0,1.9306]
[1765875949629,1.49131814,2930.3,2930.2,1.495]
[1765875949924,0.00511814,2930.3,2930.2,1.495]
[1765875950128,1.65683,2930.9,2930.8,1.495]
[1765875951030,1.65683,2930.9,2930.8,0.7726]
[1765875951230,1.4862,2930.7,2930.6,0.77771814]
[1765875951525,1.4862,2930.7,2930.6,1.50011814]
[1765875960240,1.65683,2930.9,2930.8,1.495]
[1765875960444,0.17063,2930.9,2930.8,1.495]
[1765875960744,1.65683,2930.9,2930.8,0.7726]